bitfinex/quotes_SOLUSD_20251201
["timestamp","ask_amount","ask_price","bid_price","bid_amount"]
[1764620601447,11.22549459,124.82,124.76,27.53794936]
[1764620602364,11.22549459,124.82,124.76,19.52260536]
[1764620602867,11.22549459,124.82,124.77,3.21374135]
[1764620603169,8.01175324,124.82,124.77,3.21374135]
[1764620603370,11.22549459,124.82,124.77,3.21374135]
[1764620603868,11.22549459,124.82,124.76,16.30886401]
[1764620604175,3.21374135,124.81,124.76,16.30886401]
[1764620604369,11.22625439,124.81,124.76,16.30886401]
[1764620604546,3.21374135,124.79,124.76,1e-08]
[1764620604753,3.21374135,124.8,124.76,1e-08]
[1764620605264,3.21374135,124.8,124.76,8.01520484]
[1764620605850,11.2269488,124.8,124.76,1e-08]
[1764620606754,3.21374135,124.79,124.76,1e-08]
[1764620607354,11.2269488,124.8,124.76,1e-08]
[1764620607762,28.04381413,124.81,124.76,1e-08]
[1764620607952,12.13374135,124.8,124.76,1e-08]
[1764620609085,8.92,124.8,124.76,1e-08]
[1764620609274,12.13374135,124.8,124.76,1e-08]
[1764620610073,20.14691795,124.8,124.76,1e-08]
[1764620610662,20.14532525,124.82,124.76,3.21374136]
[1764620611168,28.95403823,124.84,124.78,3.21374135]
[1764620612070,3.21374135,124.83,124.79,8.01346261]
[1764620612465,12.13374135,124.84,124.79,28.04711915]
[1764620612670,8.92,124.84,124.79,31.2608605]
[1764620613174,16.93041582,124.84,124.79,31.2608605]
[1764620613570,20.14415717,124.84,124.79,31.2608605]
[1764620614766,11.2235195,124.85,124.79,31.2608605]
[1764620615175,8.00977815,124.85,124.8,3.21374135]
[1764620616189,8.00977815,124.85,124.8,11.22635897]
[1764620616354,11.2235195,124.85,124.8,8.01261762]
[1764620616554,8.00977815,124.85,124.8,11.22635897]
[1764620616752,31.24754833,124.85,124.79,11.22698449]
[1764620617059,11.2235195,124.85,124.79,11.22698449]
[1764620617458,31.24754833,124.85,124.79,31.26064103]
[1764620620070,11.22457156,124.84,124.79,31.26064103]
[1764620620469,12.13374135,124.83,124.79,8.01324314]
[1764620620667,12.13374135,124.83,124.77,48.47882299]
[1764620620668,3.21374135,124.81,124.77,8.01452328]
[1764620620983,12.02368627,124.82,124.77,8.01452328]
[1764620621163,3.21374135,124.81,124.77,8.01452328]
[1764620621880,11.22644338,124.81,124.77,8.01452328]
[1764620622563,12.13374135,124.8,124.76,8.01513912]
[1764620622755,12.13374135,124.8,124.76,1e-08]
[1764620623476,3.21374135,124.79,124.76,1e-08]
[1764620623683,12.13374135,124.8,124.76,1e-08]
[1764620623982,11.22720396,124.79,124.76,1e-08]
[1764620624478,3.21374135,124.78,124.76,1e-08]
[1764620625785,20.94368627,124.77,124.76,1e-08]
[1764620625957,28.9584334,124.77,124.76,1e-08]
[1764620626987,25.74469205,124.77,124.76,1e-08]
[1764620627485,28.9584334,124.77,124.76,1e-08]
[1764620628680,16.93474713,124.77,124.76,1e-08]
[1764620629111,20.14848848,124.77,124.76,1e-08]
[1764620630267,16.93474713,124.77,124.76,1e-08]
[1764620631991,20.14848848,124.77,124.76,1e-08]
[1764620632572,28.9584334,124.77,124.76,1e-08]
[1764620632771,179.10059497,124.77,124.76,1e-08]
[1764620633077,20.0384334,124.77,124.76,1e-08]
[1764620633282,28.9584334,124.77,124.76,1e-08]
[1764620634078,20.14848848,124.77,124.76,1e-08]
[1764620634694,16.93474713,124.77,124.76,1e-08]
[1764620634991,20.14848848,124.77,124.76,1e-08]
[1764620635191,16.93474713,124.77,124.76,1e-08]
[1764620635491,20.14848848,124.77,124.76,1e-08]
[1764620638173,17.72994492,124.79,124.76,1e-08]
[1764620638390,170.17318946,124.81,124.76,1e-08]
[1764620638391,3.21374135,124.8,124.76,1e-08]
[1764620639072,31.2591493,124.8,124.76,1e-08]
[1764620642705,8.01217851,124.81,124.78,3.21374135]
[1764620642999,8.92,124.82,124.78,3.21374135]
[1764620643180,12.13374135,124.82,124.77,3.21374135]
[1764620643372,8.92,124.82,124.78,3.21374135]
[1764620644299,8.01025312,124.84,124.81,3.21374135]
[1764620644479,8.00953128,124.86,124.83,3.21374135]
[1764620644680,8.00953128,124.86,124.82,3.21374135]
[1764620645587,8.00953128,124.86,124.83,3.21374135]
[1764620645782,40.16569774,124.86,124.81,11.22544627]
[1764620646099,40.16569774,124.86,124.82,3.21374135]
[1764620646502,36.95195639,124.86,124.82,3.21374135]
[1764620646904,16.92953128,124.86,124.83,3.21374135]
[1764620648393,16.92953128,124.86,124.83,5.01286991]
[1764620648702,21.94240119,124.86,124.81,13.02504842]
[1764620649081,5.01286991,124.85,124.81,8.01217851]
[1764620649389,22.74281483,124.84,124.79,13.02588352]
[1764620650105,17.72994492,124.84,124.8,5.01286991]
[1764620650291,8.92,124.84,124.81,5.01286991]
[1764620651078,16.930287,124.84,124.81,13.02497572]
[1764620651484,8.92,124.84,124.81,13.02497572]
[1764620651686,16.90900104,124.86,124.81,8.01210581]
[1764620651888,16.90900104,124.86,124.82,5.01286991]
[1764620652595,21.92187095,124.86,124.81,13.02497572]
[1764620655210,8.9,124.84,124.8,13.02529741]
[1764620655426,16.91055449,124.84,124.8,13.02529741]
[1764620655711,8.9,124.84,124.8,13.02529741]
[1764620655912,21.92315462,124.84,124.8,8.0124275]
[1764620656214,5.01286991,124.83,124.78,13.02663116]
[1764620656425,13.82281483,124.81,124.77,8.01446248]
[1764620656607,13.82281483,124.81,124.76,5.01286992]
[1764620657226,13.91286991,124.8,124.76,1e-08]
[1764620657522,13.91286991,124.8,124.76,8.01532755]
[1764620657824,21.92623626,124.8,124.76,8.01532755]
[1764620658611,8.9,124.8,124.76,5.01286992]
[1764620658913,13.91286991,124.8,124.76,5.01286992]
[1764620659154,21.92576339,124.8,124.76,5.01286992]
[1764620660116,21.92576339,124.8,124.76,13.02796784]
[1764620660727,8.9,124.8,124.77,5.01286991]
[1764620662020,8.9,124.8,124.77,8.01451517]
[1764620662835,21.92577392,124.8,124.76,8.01522941]
[1764620663335,16.91290401,124.8,124.76,13.02809932]
[1764620663535,16.91240242,124.81,124.77,5.01286991]
[1764620664315,16.91240242,124.81,124.78,8.01410482]
[1764620665301,21.92527233,124.81,124.76,25.05134378]
[1764620666647,21.92527233,124.81,124.76,33.06673332]
[1764620667022,21.92527233,124.81,124.76,1e-08]
[1764620667023,5.01286991,124.79,124.76,1e-08]
[1764620667226,13.82281483,124.77,124.76,1e-08]
[1764620668610,21.83756196,124.77,124.76,1e-08]
[1764620669739,8.9,124.78,124.76,1e-08]
[1764620670238,16.91418667,124.78,124.76,1e-08]
[1764620670820,64.15249075,124.84,124.77,30.22173391]
[1764620670821,24.10122514,124.84,124.77,30.22173391]
[1764620671021,158.00769802,124.88,124.77,25.208864]
[1764620671022,8.9,124.86,124.77,25.208864]
[1764620671243,8.9,124.86,124.82,5.01286991]
[1764620671545,8.9,124.86,124.83,5.01286991]
[1764620671754,8.9,124.86,124.82,13.02417526]
[1764620672044,8.80994492,124.85,124.78,20.03509578]
[1764620672450,8.80994492,124.85,124.81,5.01286991]
[1764620672746,8.80994492,124.83,124.78,8.01386597]
[1764620672926,8.9,124.82,124.78,13.02673588]
[1764620673636,13.91286991,124.82,124.77,21.92755726]
[1764620673819,16.91216745,124.82,124.77,21.92755726]
[1764620674174,8.9,124.82,124.78,5.01286991]
[1764620674343,16.91166281,124.82,124.78,5.01286991]
[1764620675447,16.91166281,124.82,124.78,13.02681191]
[1764620675624,16.91166281,124.82,124.77,13.02741292]
[1764620675821,8.9,124.82,124.77,13.02741292]
[1764620676027,8.9,124.82,124.79,5.01286991]
[1764620677323,13.02322279,124.84,124.79,13.02580907]
[1764620677641,8.80994492,124.83,124.78,5.01286991]
[1764620677853,8.9,124.84,124.78,28.04936688]
[1764620678035,80.01286991,124.88,124.83,5.01286991]
[1764620678238,8.20682189,124.9,124.84,5.01286991]
[1764620678446,8.9,124.88,124.85,13.95821644]
[1764620678627,8.9,124.88,124.84,13.95821644]
[1764620679544,16.90769653,124.88,124.84,13.95821644]
[1764620680450,16.90769653,124.88,124.83,13.95821644]
[1764620680751,22.76816136,124.87,124.82,41.99859458]
[1764620680926,22.76816136,124.87,124.82,28.04037814]
[1764620681122,13.95821644,124.84,124.79,13.95821644]
[1764620681352,13.95821644,124.82,124.78,8.01410482]
[1764620683322,16.82159049,124.82,124.78,8.01410482]
[1764620683544,30.77980693,124.82,124.78,8.01410482]
[1764620684158,30.77980693,124.82,124.77,8.01474713]
[1764620684335,13.95821644,124.81,124.77,8.01474713]
[1764620685039,13.95821644,124.8,124.77,8.01474713]
[1764620685638,16.82159049,124.82,124.77,8.01474713]
[1764620685953,8.9,124.81,124.78,13.95821644]
[1764620686349,30.86931307,124.83,124.79,8.01346261]
[1764620687733,30.86931307,124.83,124.78,8.01410482]
[1764620689363,30.86931307,124.83,124.77,33.99508427]
[1764620689653,16.91109663,124.83,124.77,33.99508427]
[1764620689863,30.86931307,124.83,124.77,33.99508427]
[1764620690156,22.85821644,124.83,124.78,13.95821644]
[1764620690355,8.9,124.83,124.79,13.95821644]
[1764620691250,8.9,124.83,124.8,13.95821644]
[1764620691560,8.9,124.83,124.81,8.01217851]
[1764620692255,16.91094851,124.83,124.8,8.01282051]
[1764620694167,16.91094851,124.83,124.79,8.01346261]
[1764620695562,8.9,124.83,124.79,8.01346261]
[1764620695859,8.9,124.83,124.79,21.97167905]
[1764620698166,16.91091418,124.83,124.79,21.97167905]
[1764620700250,30.86913062,124.83,124.79,8.01346261]
[1764620700454,13.95821644,124.81,124.77,8.01474713]
[1764620700666,22.85821644,124.81,124.77,8.01474713]
[1764620701043,8.9,124.81,124.77,8.01474713]
[1764620701682,13.95821644,124.79,124.76,8.01504893]
[1764620701847,8.9,124.79,124.76,8.01504893]
[1764620702247,16.91348255,124.79,124.76,8.01504893]
[1764620703366,13.95821644,124.78,124.76,1e-08]
[1764620703864,31.66816136,124.77,124.76,1e-08]
[1764620704545,39.68290849,124.77,124.76,1e-08]
[1764620705049,25.72469205,124.77,124.76,1e-08]
[1764620705259,39.68290849,124.77,124.76,1e-08]
[1764620705463,25.72469205,124.77,124.76,1e-08]
[1764620705963,39.68290849,124.77,124.76,1e-08]
[1764620706171,25.72469205,124.77,124.76,1e-08]
[1764620706565,39.68290849,124.77,124.76,1e-08]
[1764620709357,39.82507006,124.77,124.76,1e-08]
[1764620709878,189.82507006,124.77,124.76,1e-08]
[1764620710474,183.68149334,124.77,124.76,1e-08]
[1764620711356,183.68149334,124.77,124.71,0.1]
[1764620711357,16.97006672,124.72,124.71,0.1]
[1764620711557,33.68470644,124.72,124.71,0.1]
[1764620712761,49.99357044,124.72,124.71,0.1]
[1764620714756,16.308864,124.69,124.68,0.2]
[1764620714957,83.80994492,124.68,124.63,0.1]
[1764620715160,16.62458464,124.64,124.63,0.1]
[1764620715395,25.52458464,124.64,124.63,0.1]
[1764620715562,108.68985275,124.64,124.63,0.1]
[1764620715875,124.99871675,124.64,124.63,0.1]
[1764620717962,117.18407703,124.64,124.63,0.1]
[1764620718179,108.28407703,124.64,124.63,0.1]
[1764620718384,125.01871675,124.64,124.63,0.1]
[1764620718676,42.06191546,124.64,124.63,0.1]
[1764620718895,50.01871675,124.64,124.63,0.1]
[1764620719181,125.01871675,124.64,124.63,0.1]
[1764620719583,41.99561021,124.64,124.63,0.1]
[1764620719979,34.03880892,124.64,124.63,0.1]
[1764620720388,8.92,124.64,124.63,0.1]
[1764620723375,25.228864,124.66,124.63,0.1]
[1764620723883,8.92,124.66,124.63,15.93839002]
[1764620724867,8.92,124.66,124.63,8.1237503]
[1764620726177,8.92,124.66,124.63,15.93839002]
[1764620726483,8.80994492,124.67,124.63,15.93839002]
[1764620727872,8.80994492,124.67,124.64,7.81463972]
[1764620728072,8.80994492,124.67,124.64,15.83772349]
[1764620728385,8.92,124.68,124.66,7.81463972]
[1764620728705,8.92,124.72,124.67,7.81463972]
[1764620728868,8.92,124.72,124.64,37.00085013]
[1764620729073,8.92,124.72,124.68,7.81463972]
[1764620729294,8.92,124.72,124.69,7.81463972]
[1764620729610,8.01768936,124.73,124.69,7.81463972]
[1764620729788,16.82763428,124.73,124.7,15.83388591]
[1764620730103,17.72994492,124.74,124.7,15.83388591]
[1764620730268,8.80994492,124.73,124.69,8.01972544]
[1764620730465,8.80994492,124.73,124.69,15.83436516]
[1764620731284,8.80994492,124.73,124.68,15.83497395]
[1764620731487,8.80994492,124.73,124.69,7.81463972]
[1764620731871,8.92,124.74,124.7,15.83388591]
[1764620732081,17.72994492,124.74,124.7,15.83388591]
[1764620732274,25.74662712,124.74,124.69,15.83426004]
[1764620732482,25.74662712,124.74,124.69,35.88398335]
[1764620733093,8.80994492,124.73,124.69,15.83426004]
[1764620734076,8.80994492,124.73,124.68,20.0507566]
[1764620734400,8.80994492,124.73,124.69,7.81463972]
[1764620734777,8.92,124.74,124.7,7.81463972]
[1764620736206,8.92,124.74,124.71,8.01860315]
[1764620737316,8.92,124.74,124.71,15.83324287]
[1764620738118,8.92,124.74,124.68,28.07186396]
[1764620741319,8.92,124.74,124.7,7.81463972]
[1764620741507,8.92,124.74,124.68,20.0513314]
[1764620741694,8.92,124.74,124.7,7.81463972]
[1764620742312,8.92,124.74,124.71,7.81463972]
[1764620742493,8.92,124.74,124.7,7.81463972]
[1764620744017,24.32437721,124.76,124.72,7.81463972]
[1764620744232,33.24437721,124.76,124.72,7.81463972]
[1764620744520,33.24437721,124.76,124.72,3.21339846]
[1764620745319,33.24437721,124.76,124.72,11.23090979]
[1764620745531,8.01457087,124.78,124.73,3.21339846]
[1764620745732,11.22796933,124.78,124.72,16.93751133]
[1764620746033,11.22796933,124.78,124.72,8.01751133]
[1764620746034,8.80994492,124.75,124.72,8.01751133]
[1764620746324,17.72994492,124.75,124.72,8.01751133]
[1764620747024,25.74614405,124.75,124.71,8.01860315]
[1764620747399,28.95954251,124.75,124.71,8.01860315]
[1764620750506,3.21339846,124.73,124.69,16.308864]
[1764620751134,11.23108965,124.73,124.68,28.07159687]
[1764620751322,11.23108965,124.73,124.68,8.02053256]
[1764620751496,3.21339846,124.73,124.68,11.23393102]
[1764620751697,11.23076173,124.73,124.68,11.23393102]
[1764620751897,3.21339846,124.73,124.68,11.23393102]
[1764620752201,3.21339846,124.73,124.68,28.07186396]
[1764620752411,16.71523868,124.72,124.67,24.32989192]
[1764620752614,16.71523868,124.72,124.67,32.1451306]
[1764620752615,8.9,124.72,124.67,32.1451306]
[1764620753524,8.9,124.72,124.68,7.81523868]
[1764620753726,8.9,124.72,124.67,44.38283168]
[1764620754027,8.9,124.72,124.68,7.81523868]
[1764620754726,8.9,124.72,124.69,8.01988932]
[1764620758527,8.9,124.72,124.65,20.05562249]
[1764620758528,7.81523868,124.7,124.65,20.05562249]
[1764620758717,16.71523868,124.69,124.66,8.02181934]
[1764620758924,7.81523868,124.68,124.64,8.02310654]
[1764620759125,15.83592374,124.68,124.63,28.18210134]
[1764620759320,15.83592374,124.68,124.63,35.99734002]
[1764620759514,7.81523868,124.68,124.63,35.99734002]
[1764620759908,15.83582373,124.68,124.63,35.99734002]
[1764620760630,15.83582373,124.68,124.63,28.18210134]
[1764620761815,7.81523868,124.67,124.63,28.18210134]
[1764620762534,15.83582373,124.68,124.63,28.18210134]
[1764620762920,7.81523868,124.67,124.63,28.18210134]
[1764620763505,15.83582373,124.68,124.63,28.18210134]
[1764620763710,15.83582373,124.68,124.63,35.99734002]
[1764620764326,8.9,124.69,124.64,7.81523868]
[1764620765121,16.71523868,124.69,124.64,7.81523868]
[1764620765521,8.9,124.69,124.64,7.81523868]
[1764620766041,8.9,124.69,124.65,15.83770157]
[1764620766230,7.81523868,124.74,124.67,7.81523868]
[1764620766231,82.81523868,124.73,124.67,7.81523868]
[1764620766411,8.80994492,124.72,124.67,7.81523868]
[1764620766811,16.73523868,124.73,124.68,7.81523868]
[1764620766812,24.75288031,124.73,124.68,7.81523868]
[1764620767044,24.75288031,124.73,124.65,36.99862013]
[1764620767331,24.75288031,124.73,124.68,7.81523868]
[1764620767515,24.75288031,124.73,124.67,7.81523868]
[1764620768241,24.75288031,124.73,124.68,15.83577124]
[1764620768414,24.75288031,124.73,124.68,8.02053256]
[1764620769232,24.75288031,124.73,124.68,15.83577124]
[1764620770436,30.93356616,124.73,124.68,13.99592453]
[1764620771772,30.93356616,124.73,124.67,20.05207961]
[1764620771940,30.93356616,124.73,124.68,13.99592453]
[1764620772618,45.161636,124.74,124.68,13.99592453]
[1764620772619,97.01082954,124.77,124.71,13.99592453]
[1764620772820,8.80994492,124.76,124.72,13.99592453]
[1764620773726,105.91082954,124.77,124.73,13.99592453]
[1764620773727,8.9,124.77,124.73,13.99592453]
[1764620773922,30.90969554,124.79,124.73,13.99592453]
[1764620774433,21.93341506,124.79,124.73,5.01964405]
[1764620774631,8.9,124.79,124.75,5.01964405]
[1764620775341,5.01964405,124.78,124.73,13.03670696]
[1764620775542,5.01964405,124.78,124.72,8.01769493]
[1764620775741,5.01964405,124.78,124.72,33.08223955]
[1764620775921,5.01964405,124.78,124.73,5.01964405]
[1764620776718,5.01964405,124.78,124.74,8.01667468]
[1764620776920,8.80994492,124.78,124.74,8.01667468]
[1764620778655,13.91964405,124.79,124.74,28.05836138]
[1764620778952,22.72958897,124.79,124.74,28.05836138]
[1764620781239,5.01964405,124.78,124.74,28.05836138]
[1764620781658,5.01964405,124.78,124.74,8.01667468]
[1764620781929,5.01964405,124.77,124.74,8.01667468]
[1764620782331,5.01964405,124.75,124.71,8.01860315]
[1764620782563,5.01964405,124.74,124.71,8.01860315]
[1764620782748,5.01964405,124.75,124.71,8.01860315]
[1764620782948,13.82958897,124.75,124.71,8.01860315]
[1764620783250,13.82958897,124.75,124.7,20.04690492]
[1764620783431,21.84609706,124.75,124.7,28.06615111]
[1764620784352,8.80994492,124.74,124.7,8.01924619]
[1764620784558,13.82958897,124.74,124.7,8.01924619]
[1764620785255,5.01964405,124.73,124.7,8.01924619]
[1764620785444,13.91964405,124.73,124.7,8.01924619]
[1764620785949,8.9,124.73,124.7,8.01924619]
[1764620786162,8.9,124.73,124.69,8.01988932]
[1764620787259,21.84664778,124.74,124.69,8.01988932]
[1764620787461,8.9,124.73,124.69,8.01988932]
[1764620789763,5.01964405,124.72,124.69,8.01988932]
[1764620789952,5.01964405,124.7,124.66,20.05405807]
[1764620790152,13.91964405,124.69,124.63,5.11964405]
[1764620790363,13.91964405,124.69,124.63,21.42850805]
[1764620790948,8.9,124.69,124.64,33.10018075]
[1764620791264,5.01964405,124.68,124.64,8.02310654]
[1764620792268,5.01964405,124.68,124.63,0.1]
[1764620792472,14.00789013,124.68,124.63,0.1]
[1764620792961,22.0285833,124.68,124.63,8.1237503]
[1764620794949,22.0285833,124.68,124.63,0.1]
[1764620794950,22.81783505,124.67,124.63,0.1]
[1764620795477,22.90789013,124.66,124.63,0.1]
[1764620796046,97.95999662,124.65,124.63,0.1]
[1764620796267,22.81783505,124.64,124.63,0.1]
[1764620796849,22.95999662,124.64,124.63,0.1]
[1764620797056,30.98310316,124.64,124.63,0.1]
[1764620798681,22.81783505,124.64,124.63,0.1]
[1764620798877,25.208864,124.66,124.63,0.1]
[1764620799082,8.80994492,124.65,124.63,0.1]
[1764620800174,16.83266314,124.65,124.63,0.1]
[1764620801068,47.23879007,124.66,124.63,0.1]
[1764620802268,16.92203594,124.66,124.63,0.1]
[1764620802473,16.92203594,124.66,124.63,14.10789013]
[1764620802868,25.208864,124.68,124.63,14.10789013]
[1764620803069,39.21675413,124.68,124.63,14.10789013]
[1764620803763,16.92079949,124.68,124.64,8.02310654]
[1764620803961,16.92079949,124.68,124.64,22.03099667]
[1764620804169,8.02079949,124.68,124.64,22.03099667]
[1764620804351,25.73008797,124.69,124.66,14.00789013]
[1764620804550,8.9,124.69,124.66,14.00789013]
[1764620804853,25.72877353,124.71,124.67,14.00789013]
[1764620805057,8.9,124.71,124.68,14.00789013]
[1764620805874,8.9,124.71,124.68,22.02803344]
[1764620806175,8.01709407,124.74,124.7,14.00789013]
[1764620806494,8.80994492,124.73,124.68,28.07147471]
[1764620806660,17.70994492,124.73,124.68,42.07936484]
[1764620807376,39.73535576,124.73,124.68,42.07936484]
[1764620808659,8.80994492,124.68,124.63,0.1]
[1764620808982,8.9,124.68,124.64,22.03099667]
[1764620810584,8.9,124.68,124.64,42.08876303]
[1764620811782,30.92873251,124.68,124.63,8.1237503]
[1764620812278,8.9,124.68,124.63,42.19101618]
[1764620812477,8.9,124.68,124.64,14.00789013]
[1764620813269,16.92061104,124.68,124.63,42.19101618]
[1764620813672,16.92061104,124.68,124.64,14.00789013]
[1764620813673,8.9,124.68,124.64,14.00789013]
[1764620814162,8.9,124.68,124.65,8.02246289]
[1764620814586,16.92059346,124.68,124.64,13.0501719]
[1764620814781,16.92059346,124.68,124.64,8.02280211]
[1764620815482,5.02736979,124.66,124.63,0.1]
[1764620815667,13.92736979,124.66,124.63,0.1]
[1764620816179,5.02736979,124.64,124.63,0.1]
[1764620816484,21.86024131,124.65,124.63,0.1]
[1764620817263,22.73731471,124.64,124.63,0.1]
[1764620817670,22.87947628,124.64,124.63,0.1]
[1764620818485,197.21144682,124.64,124.63,0.1]
[1764620821786,197.21144682,124.64,124.59,0.1]
[1764620821787,8.80994492,124.6,124.59,0.1]
[1764620822091,22.87947628,124.6,124.59,0.1]
[1764620823281,30.90515846,124.6,124.59,0.1]
[1764620824397,16.8356271,124.6,124.59,0.1]
[1764620824693,111.37149264,124.61,124.59,0.1]
[1764620824694,8.92,124.61,124.59,0.1]
[1764620829578,8.02439415,124.62,124.59,0.1]
[1764620829784,16.94439415,124.62,124.59,0.1]
[1764620830303,30.96413003,124.62,124.59,0.1]
[1764620831499,89.16189745,124.6,124.59,0.1]
[1764620831827,106.10757963,124.6,124.59,0.1]
[1764620832281,189.91752455,124.6,124.59,0.1]
[1764620832482,183.73263309,124.6,124.59,0.1]
[1764620835014,183.73263309,124.6,124.59,1e-08]
[1764620835207,100.11880892,124.57,124.56,0.2]
[1764620835397,91.78695091,124.56,124.55,1e-08]
[1764620835697,91.98101054,124.55,124.54,0.1]
[1764620835905,108.73585496,124.55,124.54,0.1]
[1764620836101,16.64478934,124.51,124.46,0.1]
[1764620836302,100.70695091,124.51,124.46,0.1]
[1764620836719,175.70695091,124.51,124.46,0.1]
[1764620837009,175.70695091,124.51,124.5,1e-08]
[1764620837222,175.70695091,124.51,124.48,1e-08]
[1764620837502,183.09581491,124.49,124.48,1e-08]
[1764620837701,200.04858862,124.49,124.48,1e-08]
[1764620838205,192.2137442,124.49,124.48,1e-08]
[1764620838402,200.04858862,124.49,124.48,1e-08]
[1764620840187,199.90642705,124.49,124.48,1e-08]
[1764620840701,200.04858862,124.49,124.48,1e-08]
[1764620841309,192.2137442,124.49,124.48,1e-08]
[1764620841485,16.84271863,124.49,124.48,1e-08]
[1764620841687,25.76271863,124.49,124.48,1e-08]
[1764620843400,33.59756305,124.49,124.48,1e-08]
[1764620843994,25.76271863,124.49,124.48,1e-08]
[1764620844310,33.59756305,124.49,124.48,1e-08]
[1764620844902,25.76271863,124.49,124.48,1e-08]
[1764620845305,16.95277371,124.49,124.48,1e-08]
[1764620846804,24.78761813,124.49,124.48,1e-08]
[1764620847117,16.95277371,124.49,124.48,1e-08]
[1764620849211,8.0309396,124.52,124.48,7.83484443]
[1764620849413,16.95042525,124.53,124.49,7.83484442]
[1764620850419,17.72994492,124.55,124.51,7.83484442]
[1764620850594,7.83484442,124.54,124.49,7.83484442]
[1764620850798,7.83484442,124.51,124.48,1e-08]
[1764620851016,16.75484442,124.51,124.48,1e-08]
[1764620851315,16.75484442,124.51,124.48,8.03339715]
[1764620851517,16.75484442,124.51,124.48,1e-08]
[1764620851717,16.75484442,124.51,124.48,8.03334205]
[1764620851905,8.92,124.51,124.48,8.03334205]
[1764620853017,8.92,124.51,124.48,1e-08]
[1764620853210,16.75484442,124.51,124.48,1e-08]
[1764620853617,8.92,124.51,124.48,1e-08]
[1764620853812,24.78640628,124.51,124.48,1e-08]
[1764620854011,8.92,124.51,124.48,1e-08]
[1764620854607,16.75484442,124.51,124.48,1e-08]
[1764620854816,8.92,124.51,124.48,1e-08]
[1764620856728,8.92,124.53,124.5,7.83484442]
[1764620857320,8.92,124.53,124.51,8.03148341]
[1764620858823,8.92,124.53,124.51,15.86632783]
[1764620859002,8.80994492,124.55,124.49,8.03277371]
[1764620859003,16.64478934,124.54,124.49,8.03277371]
[1764620859327,8.92,124.53,124.48,44.22626365]
[1764620859525,16.95019906,124.53,124.48,44.22626365]
[1764620859908,8.92,124.53,124.48,44.22626365]
[1764620860708,8.92,124.53,124.49,7.83484442]
[1764620861329,8.92,124.53,124.48,44.42483825]
[1764620861517,8.92,124.53,124.49,7.83484442]
[1764620862210,8.92,124.53,124.48,52.25968267]
[1764620864810,8.92,124.53,124.48,44.42483825]
[1764620865011,8.92,124.53,124.5,7.83484442]
[1764620865217,8.92,124.53,124.49,7.83484442]
[1764620865709,8.92,124.53,124.5,7.83484442]
[1764620865911,8.92,124.53,124.5,15.86677432]
[1764620866517,8.92,124.53,124.51,7.83484442]
[1764620867325,8.92,124.53,124.5,35.9470956]
[1764620867531,15.86407498,124.55,124.51,7.83484442]
[1764620867532,16.94923056,124.55,124.51,7.83484442]
[1764620867840,16.64478934,124.54,124.5,8.0319299]
[1764620868002,16.84002586,124.54,124.5,8.0319299]
[1764620868202,24.67487028,124.54,124.5,8.0319299]
[1764620868424,16.84002586,124.54,124.5,15.86677432]
[1764620870128,8.80994492,124.54,124.5,15.86677432]
[1764620870328,8.80994492,124.54,124.5,8.0319299]
[1764620870521,16.83952648,124.54,124.5,8.0319299]
[1764620871536,24.6743709,124.54,124.49,28.11417477]
[1764620871929,8.80994492,124.52,124.48,1e-08]
[1764620872121,7.83484442,124.49,124.48,1e-08]
[1764620872323,33.09581491,124.49,124.48,1e-08]
[1764620872937,42.01581491,124.49,124.48,1e-08]
[1764620873630,50.04858862,124.49,124.48,1e-08]
[1764620879345,8.92,124.49,124.48,1e-08]
[1764620880538,33.59756305,124.49,124.48,1e-08]
[1764620881645,25.76271863,124.49,124.48,1e-08]
[1764620881944,33.59756305,124.49,124.48,1e-08]
[1764620882645,33.73972462,124.49,124.48,1e-08]
[1764620886752,33.59756305,124.49,124.48,1e-08]
[1764620886934,33.73972462,124.49,124.48,1e-08]
[1764620887851,25.76271863,124.49,124.48,1e-08]
[1764620888146,33.59756305,124.49,124.48,1e-08]
[1764620889750,25.76271863,124.49,124.48,1e-08]
[1764620889950,8.92,124.49,124.48,1e-08]
[1764620891554,17.72994492,124.51,124.48,1e-08]
[1764620891878,8.92,124.51,124.48,8.03341903]
[1764620892358,8.80994492,124.52,124.48,28.11696658]
[1764620892657,8.92,124.57,124.51,3.2273491]
[1764620892846,8.92,124.57,124.53,3.2273491]
[1764620893764,8.92,124.57,124.54,8.02954873]
[1764620894258,8.92,124.57,124.53,11.25727792]